bitfinex/quotes_BTCUSD_20241107
["timestamp","ask_amount","ask_price","bid_price","bid_amount"]
[1730992331478,0.40963187,75185.0,75184.0,0.001662]
[1730992331758,0.56487464,75185.0,75184.0,0.001662]
[1730992332015,0.61752823,75185.0,75184.0,0.001662]
[1730992332241,0.59234112,75185.0,75184.0,0.001662]
[1730992332465,0.63184937,75185.0,75184.0,0.001662]
[1730992332696,0.46009835,75185.0,75184.0,0.001662]
[1730992333649,0.47662761,75185.0,75184.0,0.001662]
[1730992334135,0.49962761,75185.0,75184.0,0.001662]
[1730992334642,0.46009835,75185.0,75184.0,0.001662]
[1730992335092,0.46009835,75185.0,75177.0,0.19994268]
[1730992335093,0.233017,75178.0,75177.0,0.19994268]
[1730992335318,0.36525802,75178.0,75177.0,0.19994268]
[1730992335575,0.133035,75168.0,75167.0,0.19994268]
[1730992335780,0.13303,75171.0,75167.0,0.19994268]
[1730992336245,0.133033,75169.0,75163.0,0.001504]
[1730992336443,0.13224102,75170.0,75163.0,0.001504]
[1730992336597,0.3991,75169.0,75163.0,0.001504]
[1730992336828,0.13224102,75170.0,75163.0,0.001504]
[1730992337215,0.13224102,75170.0,75164.0,0.01229927]
[1730992337616,0.17257227,75174.0,75165.0,0.01229927]
[1730992337850,0.17178829,75174.0,75167.0,0.001]
[1730992338062,0.17178829,75174.0,75163.0,0.001504]
[1730992338321,0.03954727,75174.0,75172.0,0.19994268]
[1730992338540,0.05204104,75177.0,75173.0,0.05839475]
[1730992338541,0.19994268,75177.0,75173.0,0.05839475]
[1730992338763,0.19994268,75177.0,75174.0,0.01229475]
[1730992338974,0.133019,75178.0,75175.0,0.01229475]
[1730992339148,0.17195589,75177.0,75173.0,0.0461]
[1730992339405,0.133024,75174.0,75173.0,0.0461]
[1730992339638,0.133024,75174.0,75166.0,0.00480126]
[1730992339639,0.133025,75174.0,75166.0,0.00480126]
[1730992339874,0.03954727,75174.0,75167.0,0.01229014]
[1730992340112,0.03954727,75174.0,75168.0,0.01229014]
[1730992340340,0.03954727,75174.0,75169.0,0.01229014]
[1730992340570,0.17257327,75174.0,75167.0,0.001662]
[1730992340806,0.17257327,75174.0,75168.0,0.01228706]
[1730992341020,0.17257327,75174.0,75169.0,0.01228706]
[1730992341259,0.03954727,75174.0,75169.0,0.01228706]
[1730992341492,0.03954727,75174.0,75167.0,0.001662]
[1730992341726,0.03954727,75174.0,75168.0,0.00480126]
[1730992341983,0.03954727,75175.0,75168.0,0.01708421]
[1730992342218,0.03954727,75175.0,75169.0,0.01228295]
[1730992342444,0.03954727,75176.0,75170.0,0.01228295]
[1730992342663,0.001,75174.0,75171.0,0.01228295]
[1730992342884,0.001,75174.0,75172.0,0.01228295]
[1730992343105,0.001,75174.0,75173.0,0.01228295]
[1730992343321,0.001,75174.0,75173.0,0.01228622]
[1730992343612,0.001,75174.0,75161.0,0.05415448]
[1730992343851,0.133028,75172.0,75161.0,0.05415448]
[1730992344111,0.19994268,75169.0,75161.0,0.05415448]
[1730992344373,0.266077,75166.0,75145.0,0.001664]
[1730992344580,0.266077,75166.0,75152.0,0.19994268]
[1730992344581,0.22920056,75159.0,75152.0,0.19994268]
[1730992344794,0.22920056,75159.0,75145.0,0.001664]
[1730992344795,0.133059,75155.0,75145.0,0.001664]
[1730992344998,0.03954727,75158.0,75148.0,0.19994268]
[1730992344999,0.26612,75154.0,75148.0,0.19994268]
[1730992345217,0.03954727,75156.0,75145.0,0.001664]
[1730992345461,0.133066,75151.0,75145.0,0.001664]
[1730992345674,0.13224102,75150.0,75145.0,0.001664]
[1730992345899,0.133074,75146.0,75145.0,0.001664]
[1730992346140,0.26531502,75146.0,75145.0,0.001664]
[1730992346577,0.39331502,75146.0,75145.0,0.001664]
[1730992346793,0.52555779,75146.0,75145.0,0.001664]
[1730992347221,0.36531502,75146.0,75145.0,0.001664]
[1730992347708,0.39331502,75146.0,75145.0,0.001664]
[1730992347930,0.23224102,75146.0,75145.0,0.001664]
[1730992348168,0.39331502,75146.0,75145.0,0.001664]
[1730992348387,0.38831502,75146.0,75145.0,0.001664]
[1730992348847,0.44205273,75146.0,75145.0,0.001664]
[1730992349097,0.58187161,75146.0,75145.0,0.001664]
[1730992349322,0.58687161,75146.0,75145.0,0.001664]
[1730992350329,0.46105273,75146.0,75145.0,0.001664]
[1730992350571,0.44205273,75146.0,75145.0,0.001664]
[1730992350857,0.28597873,75146.0,75145.0,0.001664]
[1730992351101,0.29997873,75146.0,75145.0,0.001664]
[1730992351339,0.30897873,75146.0,75145.0,0.001664]
[1730992351584,0.32297873,75146.0,75145.0,0.001664]
[1730992351823,0.30897873,75146.0,75145.0,0.001664]
[1730992352041,0.31397873,75146.0,75145.0,0.001664]
[1730992352294,0.32797873,75146.0,75145.0,0.001664]
[1730992352531,0.31397873,75146.0,75145.0,0.001664]
[1730992352767,0.40379666,75146.0,75145.0,0.001664]
[1730992353017,0.40379666,75146.0,75143.0,0.00015707]
[1730992353018,0.271077,75144.0,75143.0,0.00015707]
[1730992353250,0.233099,75132.0,75131.0,0.00160707]
[1730992353493,0.1,75132.0,75131.0,0.00160707]
[1730992353940,0.233099,75132.0,75131.0,0.00160707]
[1730992354164,0.36534002,75132.0,75131.0,0.00160707]
[1730992354402,0.42127143,75132.0,75131.0,0.00160707]
[1730992354649,0.37034002,75132.0,75131.0,0.00160707]
[1730992354906,0.43011402,75132.0,75131.0,0.00160707]
[1730992355133,0.45243905,75132.0,75131.0,0.00160707]
[1730992355360,0.44743905,75132.0,75131.0,0.00160707]
[1730992355827,0.44943905,75132.0,75131.0,0.00160707]
[1730992356536,0.3412584,75132.0,75131.0,0.00160707]
[1730992356987,0.3342584,75132.0,75131.0,0.00160707]
[1730992357505,0.19834005,75132.0,75131.0,0.00160707]
[1730992357735,0.14424102,75132.0,75131.0,0.00160707]
[1730992357952,0.012,75132.0,75131.0,0.00160707]
[1730992358205,0.19994268,75140.0,75131.0,0.00160707]
[1730992358481,0.009,75132.0,75131.0,0.00160707]
[1730992358700,0.1,75138.0,75131.0,0.00160707]
[1730992358955,0.13224102,75137.0,75131.0,0.00160707]
[1730992359178,0.012,75132.0,75131.0,0.00160707]
[1730992359403,0.16724102,75132.0,75131.0,0.00160707]
[1730992360102,0.14424102,75132.0,75131.0,0.00160707]
[1730992360346,0.13224102,75132.0,75131.0,0.00160707]
[1730992360811,0.14224102,75132.0,75131.0,0.00160707]
[1730992361040,0.13224102,75132.0,75131.0,0.00160707]
[1730992361279,0.14424102,75132.0,75131.0,0.00160707]
[1730992361513,0.13224102,75132.0,75131.0,0.00160707]
[1730992361952,0.15546512,75132.0,75131.0,0.00160707]
[1730992362186,0.14546512,75132.0,75131.0,0.00160707]
[1730992362669,0.13224102,75132.0,75131.0,0.00160707]
[1730992363123,0.29942813,75132.0,75131.0,0.00160707]
[1730992363599,0.44452713,75132.0,75131.0,0.00160707]
[1730992363853,0.44252713,75132.0,75131.0,0.00160707]
[1730992364109,0.56010208,75132.0,75131.0,0.00160707]
[1730992364337,0.6486699,75132.0,75131.0,0.00160707]
[1730992364557,0.17718711,75131.0,75130.0,0.00038395]
[1730992364779,0.45490848,75131.0,75130.0,0.00038395]
[1730992365036,0.49442599,75131.0,75130.0,0.00038395]
[1730992365259,0.44252813,75131.0,75130.0,0.00038395]
[1730992365740,0.40334102,75131.0,75130.0,0.00038395]
[1730992365992,0.23224102,75131.0,75130.0,0.00038395]
[1730992366878,0.014,75131.0,75130.0,0.00038395]
[1730992367280,0.345,75135.0,75130.0,0.00038395]
[1730992367699,0.014,75131.0,75130.0,0.00038395]
[1730992367903,0.5307,75144.0,75130.0,0.00038395]
[1730992368108,0.19994268,75139.0,75130.0,0.00038395]
[1730992368316,0.13224102,75143.0,75130.0,0.00038395]
[1730992368317,0.014,75131.0,75130.0,0.00038395]
[1730992368529,0.19994268,75143.0,75130.0,0.00038395]
[1730992368733,0.19994268,75143.0,75131.0,0.1291]
[1730992368959,0.19994268,75143.0,75131.0,0.1311]
[1730992369378,0.19994268,75143.0,75135.0,0.002]
[1730992369815,0.19994268,75143.0,75136.0,0.002]
[1730992370031,0.05278251,75154.0,75136.0,0.002]
[1730992370251,0.19994268,75145.0,75136.0,0.002]
[1730992370460,0.001,75143.0,75134.0,0.002]
[1730992370840,0.15278251,75154.0,75134.0,0.002]
[1730992371012,0.19994268,75145.0,75134.0,0.002]
[1730992371236,0.001,75143.0,75134.0,0.002]
[1730992371445,0.19994268,75145.0,75134.0,0.002]
[1730992371641,0.001,75143.0,75134.0,0.002]
[1730992372817,0.001,75143.0,75136.0,0.002]
[1730992373338,0.001,75143.0,75131.0,0.1291]
[1730992373339,0.001,75143.0,75137.0,0.002]
[1730992373540,0.001,75143.0,75142.0,0.002]
[1730992373783,0.001,75143.0,75142.0,0.0511]
[1730992374004,0.19994268,75153.0,75145.0,0.002]
[1730992374233,0.19994268,75153.0,75142.0,0.0491]
[1730992374364,0.001,75143.0,75142.0,0.0491]
[1730992374568,0.001,75143.0,75139.0,0.0804]
[1730992374569,0.02017747,75143.0,75139.0,0.0804]
[1730992374939,0.05355766,75150.0,75139.0,0.0804]
[1730992375287,0.19994268,75145.0,75139.0,0.0804]
[1730992375492,0.05355766,75150.0,75139.0,0.0804]
[1730992376019,0.19994268,75144.0,75139.0,0.0804]
[1730992376219,0.13224102,75144.0,75139.0,0.0804]
[1730992376634,0.13224102,75144.0,75131.0,0.0799]
[1730992377004,0.0133073,75143.0,75131.0,0.0799]
[1730992377203,0.0141393,75143.0,75131.0,0.0799]
[1730992377404,0.000832,75143.0,75131.0,0.0799]
[1730992377970,0.19994268,75142.0,75131.0,0.0799]
[1730992380806,0.20094268,75142.0,75131.0,0.0799]
[1730992381853,0.19994268,75142.0,75131.0,0.0799]
[1730992383066,0.20094268,75142.0,75131.0,0.0799]
[1730992383367,0.19994268,75142.0,75131.0,0.0799]
[1730992383686,0.20094268,75142.0,75131.0,0.0799]
[1730992383886,0.000832,75143.0,75134.0,0.002]
[1730992384089,0.001,75142.0,75134.0,0.002]
[1730992384299,0.001,75142.0,75137.0,0.0489]
[1730992384529,0.001,75142.0,75139.0,0.0825]
[1730992384756,0.001,75142.0,75141.0,0.0509]
[1730992385188,0.001,75142.0,75141.0,0.07060251]
[1730992385396,0.001,75142.0,75141.0,0.01970251]
[1730992385627,0.001,75142.0,75139.0,0.0825]
[1730992386285,0.000832,75143.0,75139.0,0.0825]
[1730992386694,0.001,75142.0,75134.0,0.007]
[1730992386902,0.000832,75143.0,75132.0,0.1233]
[1730992387347,0.001,75142.0,75139.0,0.007]
[1730992387595,0.001,75142.0,75132.0,0.1233]
[1730992387596,0.000832,75143.0,75132.0,0.1233]
[1730992388023,0.000832,75143.0,75134.0,0.006]
[1730992388243,0.3321837,75142.0,75134.0,0.006]
[1730992388464,0.13224102,75142.0,75134.0,0.006]
[1730992388917,0.13307302,75142.0,75134.0,0.006]
[1730992389147,0.000832,75142.0,75136.0,0.002]
[1730992389591,0.000832,75142.0,75136.0,0.0151684]
[1730992389807,0.000832,75142.0,75139.0,0.002]
[1730992390041,0.000832,75142.0,75136.0,0.002]
[1730992390255,0.000832,75142.0,75136.0,0.007]
[1730992390496,0.000832,75142.0,75138.0,0.002]
[1730992390731,0.000832,75142.0,75137.0,0.002]
[1730992390961,0.000832,75142.0,75137.0,0.01453]
[1730992391425,0.000832,75142.0,75137.0,0.002]
[1730992392323,0.000832,75142.0,75141.0,0.002]
[1730992392530,0.000832,75142.0,75140.0,0.002]
[1730992393357,0.000832,75142.0,75137.0,0.002]
[1730992393566,0.000832,75142.0,75137.0,0.006]
[1730992393770,0.000832,75142.0,75133.0,0.13224102]
[1730992393969,0.000832,75142.0,75137.0,0.002]
[1730992394171,0.000832,75142.0,75140.0,0.001]
[1730992394647,0.000832,75142.0,75136.0,0.002]
[1730992395396,0.000832,75142.0,75135.0,0.002]
[1730992395641,0.19994268,75141.0,75132.0,0.1233]
[1730992395856,0.13224102,75140.0,75132.0,0.1233]
[1730992396093,0.13224102,75140.0,75137.0,0.004]
[1730992396323,0.13224102,75140.0,75132.0,0.0766]
[1730992396533,0.000832,75142.0,75140.0,0.002]
[1730992396740,0.001832,75142.0,75140.0,0.002]
[1730992396951,0.000832,75142.0,75140.0,0.002]
[1730992397167,0.000832,75142.0,75132.0,0.0766]
[1730992397421,0.000832,75142.0,75137.0,0.003]
[1730992397638,0.000832,75142.0,75132.0,0.0766]
[1730992398070,0.000832,75142.0,75140.0,0.001]
[1730992399413,0.000832,75142.0,75138.0,0.045]
[1730992400069,0.001832,75142.0,75138.0,0.045]
[1730992400536,0.000832,75142.0,75138.0,0.045]
[1730992400743,0.000832,75142.0,75138.0,0.048]
[1730992400956,0.000832,75142.0,75138.0,0.045]
[1730992401159,0.000832,75142.0,75132.0,0.0766]
[1730992402144,0.000832,75142.0,75130.0,0.00038395]
[1730992402145,0.3321837,75141.0,75130.0,0.00038395]
[1730992402359,0.03396797,75140.0,75138.0,0.009]
[1730992402564,0.13224102,75139.0,75138.0,0.009]
[1730992402897,0.13224102,75139.0,75130.0,0.00038395]
[1730992403108,0.01245342,75138.0,75132.0,0.008]
[1730992403314,0.13224102,75137.0,75130.0,0.00038395]
[1730992405490,0.05431805,75142.0,75130.0,0.00038395]
[1730992405664,0.19994268,75141.0,75133.0,0.002]
[1730992405904,0.000832,75142.0,75134.0,0.0495]
[1730992406107,0.000832,75142.0,75135.0,0.0822]
[1730992406312,0.000832,75142.0,75135.0,0.21444102]
[1730992406519,0.000832,75142.0,75134.0,0.0495]
[1730992406520,0.000832,75142.0,75141.0,0.31025219]
[1730992406699,0.000832,75142.0,75141.0,0.0808]
[1730992406954,0.000832,75142.0,75141.0,0.0788]
[1730992407373,0.001832,75142.0,75141.0,0.0788]
[1730992407788,0.001832,75142.0,75137.0,0.002]
[1730992408234,0.001832,75142.0,75135.0,0.009]
[1730992408439,0.3321837,75141.0,75135.0,0.009]
[1730992408643,0.023,75138.0,75135.0,0.009]
[1730992408853,0.128,75136.0,75135.0,0.009]
[1730992409079,0.2726889,75136.0,75135.0,0.009]
[1730992409319,0.005,75132.0,75130.0,0.00038395]
[1730992409541,0.15524102,75131.0,75130.0,0.00038395]
[1730992409948,0.15024102,75131.0,75130.0,0.00038395]
[1730992410814,0.14524102,75131.0,75130.0,0.00038395]
[1730992411021,0.13824102,75131.0,75130.0,0.00138395]
[1730992411224,0.19265119,75131.0,75130.0,0.00138395]
[1730992411669,0.23242731,75131.0,75130.0,0.00138395]
[1730992412332,0.19265119,75131.0,75130.0,0.00138395]
[1730992412539,0.23242731,75131.0,75130.0,0.00138395]
[1730992412742,0.22642731,75131.0,75130.0,0.00038395]
[1730992413174,0.23242731,75131.0,75130.0,0.00138395]
[1730992413897,0.006,75131.0,75130.0,0.00138395]
[1730992414353,0.006,75131.0,75130.0,0.00338395]
[1730992415127,0.006,75131.0,75130.0,0.23283614]
[1730992415358,0.006,75131.0,75130.0,0.49923898]
[1730992415591,0.000832,75142.0,75141.0,0.002]
[1730992415843,0.07958493,75161.0,75141.0,0.002]
[1730992415844,0.03979246,75168.0,75153.0,0.0823]
[1730992416088,0.03979246,75168.0,75153.0,0.09053]
[1730992416338,0.1193774,75181.0,75153.0,0.09053]
[1730992416339,0.03979246,75173.0,75153.0,0.08853]
[1730992416578,0.03979246,75174.0,75163.0,0.002]
[1730992416812,0.27952761,75178.0,75163.0,0.002]
[1730992416813,0.03979246,75175.0,75163.0,0.002]
[1730992417066,0.23973514,75178.0,75171.0,0.002]
[1730992417283,0.19994268,75178.0,75171.0,0.002]
[1730992417711,0.03979246,75179.0,75169.0,0.002]
[1730992417935,0.03979246,75180.0,75163.0,0.20994268]
[1730992418156,0.03979246,75180.0,75159.0,0.002]
[1730992418157,0.03979246,75177.0,75159.0,0.002]
[1730992418370,0.13224102,75176.0,75163.0,0.19994268]
[1730992418582,0.13224102,75176.0,75159.0,0.03301967]
[1730992418788,0.13224102,75176.0,75162.0,0.19994268]
[1730992419010,0.19994268,75177.0,75167.0,0.002]
[1730992419257,0.3321837,75177.0,75171.0,0.002]
[1730992419460,0.19994268,75177.0,75171.0,0.003]
[1730992419664,0.012,75178.0,75171.0,0.001]
[1730992419874,0.3321837,75177.0,75159.0,0.03301967]
[1730992420074,0.13224102,75177.0,75163.0,0.19994268]
[1730992420282,0.001,75176.0,75162.0,0.01]
[1730992420497,0.03972129,75183.0,75160.0,0.04674145]
[1730992420498,0.13224102,75175.0,75160.0,0.04674145]
[1730992420706,0.03972129,75183.0,75168.0,0.002]
[1730992420907,0.03972129,75183.0,75162.0,0.19994268]
[1730992420908,0.19994268,75177.0,75171.0,0.006]
[1730992421105,0.13224102,75182.0,75168.0,0.002]
[1730992421538,0.001,75176.0,75168.0,0.002]
[1730992422732,0.13224102,75182.0,75168.0,0.002]
[1730992422923,0.19994268,75176.0,75171.0,0.006]
[1730992423073,0.001,75177.0,75171.0,0.006]
[1730992423271,0.13224102,75182.0,75164.0,0.002]
[1730992423470,0.13224102,75182.0,75168.0,0.006]
[1730992423695,0.001,75176.0,75168.0,0.006]
[1730992423898,0.000832,75177.0,75170.0,0.002]
[1730992424663,0.001832,75177.0,75171.0,0.006]
[1730992424868,0.001832,75177.0,75172.0,0.0824]
[1730992426577,0.000832,75177.0,75172.0,0.0824]
[1730992427763,0.000832,75177.0,75172.0,0.0874]
[1730992427985,0.000832,75177.0,75172.0,0.0824]
[1730992428216,0.000832,75177.0,75172.0,0.0844]
[1730992428657,0.000832,75177.0,75172.0,0.0824]
[1730992429341,0.19994268,75176.0,75164.0,0.0806]
[1730992429586,0.19994268,75176.0,75156.0,0.002]
[1730992429587,0.13224102,75176.0,75156.0,0.0806]
[1730992430031,0.19994268,75175.0,75172.0,0.005]
[1730992430250,0.13224102,75174.0,75156.0,0.0806]
[1730992430733,0.13224102,75174.0,75164.0,0.01]
[1730992430970,0.19994268,75173.0,75162.0,0.002]
[1730992431197,0.0537029,75177.0,75162.0,0.002]
[1730992431198,0.13224102,75172.0,75162.0,0.002]
[1730992431433,0.0537029,75177.0,75162.0,0.002]
[1730992431646,0.19994268,75176.0,75162.0,0.002]
[1730992431858,0.19994268,75176.0,75163.0,0.07234522]
[1730992432135,0.001,75174.0,75164.0,0.01]
[1730992432597,0.001,75174.0,75170.0,0.002]
[1730992433058,0.001,75174.0,75169.0,0.002]
[1730992433514,0.000832,75177.0,75173.0,0.002]
[1730992433743,0.001832,75177.0,75173.0,0.002]
[1730992433946,0.000832,75177.0,75173.0,0.002]
[1730992434167,0.000832,75177.0,75176.0,0.002]
[1730992434852,0.001832,75177.0,75176.0,0.002]
[1730992435066,0.001832,75177.0,75173.0,0.008]
[1730992435295,0.000832,75174.0,75170.0,0.081]
[1730992435538,0.000832,75174.0,75173.0,0.002]
[1730992435771,0.000832,75174.0,75173.0,0.03304522]
[1730992436040,0.000832,75174.0,75173.0,0.30034659]
[1730992436271,0.000832,75174.0,75173.0,0.40768624]
[1730992436531,0.000832,75177.0,75176.0,0.017]
[1730992436744,0.19994268,75193.0,75192.0,0.017]
[1730992436973,0.19994268,75193.0,75192.0,0.47869321]
[1730992437215,0.20069568,75222.0,75198.0,0.012]
[1730992437437,0.20069568,75222.0,75199.0,0.46055252]
[1730992437673,0.20069568,75222.0,75199.0,1.01508846]
[1730992437887,0.20069568,75222.0,75212.0,0.23145219]
[1730992438345,0.20069568,75222.0,75217.0,0.002]
[1730992438817,0.20069568,75222.0,75217.0,0.40085]
[1730992439040,0.000753,75222.0,75217.0,0.40085]
[1730992439482,0.000753,75222.0,75217.0,0.48085]
[1730992440152,0.000753,75222.0,75217.0,0.51696234]
[1730992440855,0.000753,75222.0,75217.0,0.52496234]
[1730992441101,0.000753,75222.0,75217.0,0.51696234]
[1730992441358,0.000753,75222.0,75217.0,0.56646234]
[1730992441590,0.000753,75222.0,75217.0,0.53935]
[1730992441802,0.000753,75222.0,75217.0,0.53035]
[1730992443200,0.000753,75222.0,75217.0,0.54035]
[1730992443708,0.000753,75222.0,75217.0,0.48085]
[1730992443920,0.000753,75222.0,75217.0,0.40885]
[1730992444159,0.000753,75222.0,75217.0,0.41085]
[1730992444378,0.000753,75222.0,75217.0,0.53309102]
[1730992444595,0.000753,75222.0,75217.0,0.64809102]
[1730992444851,0.000753,75222.0,75217.0,0.87254321]
[1730992445082,0.000753,75222.0,75217.0,0.77754321]
[1730992445315,0.000753,75222.0,75217.0,0.84470077]
[1730992445988,0.000753,75222.0,75217.0,0.89890608]
[1730992446214,0.000753,75222.0,75217.0,0.83174852]
[1730992446677,0.000753,75222.0,75217.0,0.83974852]
[1730992446903,0.000753,75222.0,75217.0,0.91134852]
[1730992447126,0.000753,75222.0,75217.0,1.01134852]
[1730992447396,0.000753,75222.0,75217.0,1.02134852]
[1730992447645,0.000753,75222.0,75217.0,1.16238337]
[1730992447875,0.000753,75222.0,75217.0,1.17238337]
[1730992448305,0.000831,75225.0,75224.0,0.017]
[1730992448519,0.000831,75225.0,75224.0,0.5277514]
[1730992448710,0.000831,75225.0,75224.0,1.02890321]
[1730992448969,0.000831,75225.0,75224.0,1.04268454]
[1730992449425,0.000831,75225.0,75224.0,1.01968454]
[1730992450298,0.000753,75250.0,75239.0,0.1266]
[1730992450513,0.19998268,75240.0,75239.0,0.25884102]
[1730992450727,0.19998268,75240.0,75239.0,0.88702321]
[1730992450938,4e-05,75240.0,75239.0,0.94327846]
[1730992451637,4e-05,75240.0,75239.0,0.94827846]
[1730992452495,4e-05,75240.0,75239.0,0.52533]
[1730992453356,4e-05,75240.0,75239.0,0.47793]
[1730992453978,4e-05,75240.0,75239.0,0.61917102]
[1730992454183,4e-05,75240.0,75239.0,0.61017102]
[1730992454394,4e-05,75240.0,75239.0,0.61917102]
[1730992454819,0.19648868,75257.0,75256.0,0.002]
[1730992455274,0.00083,75265.0,75258.0,0.002]
[1730992455706,0.00083,75265.0,75258.0,0.39863]
[1730992455916,0.00083,75265.0,75258.0,0.40063]
[1730992456139,0.00083,75265.0,75258.0,0.440693]
[1730992456843,0.00083,75265.0,75258.0,0.516793]
[1730992457062,0.00083,75265.0,75258.0,0.514793]
[1730992457302,0.00083,75265.0,75258.0,0.516793]
[1730992457571,0.00083,75265.0,75258.0,0.47673]
[1730992458169,0.00083,75265.0,75258.0,0.48573]
[1730992458498,0.00083,75265.0,75258.0,0.47673]
[1730992458830,0.00083,75265.0,75258.0,0.48573]
[1730992459841,0.19994268,75283.0,75276.0,0.005]
[1730992460046,0.19994268,75283.0,75278.0,0.005]
[1730992460242,0.19994268,75291.0,75279.0,0.002]
[1730992460446,0.13224102,75290.0,75282.0,0.005]
[1730992460851,0.005315,75296.0,75282.0,0.005]
[1730992461053,0.13224102,75295.0,75285.0,0.002]
[1730992461261,0.005315,75299.0,75289.0,0.005]
[1730992461844,0.13224102,75298.0,75286.0,0.005]
[1730992462922,0.13224102,75298.0,75286.0,0.007]
[1730992463131,0.13224102,75298.0,75287.0,0.005]
[1730992464008,0.000753,75301.0,75293.0,0.002]
[1730992464228,0.000753,75301.0,75292.0,0.005]
[1730992464472,0.000753,75301.0,75293.0,0.19994268]
[1730992464691,0.000753,75301.0,75300.0,0.005]
[1730992464896,0.000753,75301.0,75294.0,0.39844]
[1730992465765,0.13224102,75300.0,75294.0,0.39844]
[1730992467227,0.13224102,75300.0,75295.0,0.19994268]
[1730992467228,0.02465433,75299.0,75295.0,0.19994268]
[1730992467442,0.01232732,75298.0,75295.0,0.20494268]
[1730992467678,0.14456803,75299.0,75295.0,0.005]
[1730992468122,0.13224102,75298.0,75294.0,0.39844]
[1730992468566,0.13224102,75298.0,75294.0,0.39944]
[1730992468779,0.13224102,75298.0,75294.0,0.39844]
[1730992469216,0.01232834,75297.0,75294.0,0.39844]
[1730992469436,0.13224102,75296.0,75294.0,0.39844]
[1730992470067,0.000753,75301.0,75294.0,0.438284]
[1730992470296,0.13224102,75300.0,75294.0,0.438284]
[1730992470516,0.01232947,75299.0,75294.0,0.438284]
[1730992470734,0.13224102,75299.0,75294.0,0.39844]
[1730992471146,0.001,75298.0,75294.0,0.40344]
[1730992471350,0.000753,75301.0,75295.0,0.005]
[1730992471767,0.001,75299.0,75295.0,0.005]
[1730992472415,0.000753,75301.0,75294.0,0.39844]
[1730992472623,0.13224102,75300.0,75294.0,0.39844]
[1730992473035,0.01232753,75299.0,75294.0,0.39844]
[1730992473245,0.1445735,75299.0,75294.0,0.39844]
[1730992473452,0.01233248,75298.0,75294.0,0.39844]
[1730992474086,0.1445735,75298.0,75294.0,0.39844]
[1730992474306,0.01233248,75297.0,75294.0,0.39844]
[1730992474515,0.17475989,75297.0,75294.0,0.39844]
[1730992474724,0.01233248,75296.0,75294.0,0.39844]
[1730992474936,0.1445735,75295.0,75294.0,0.39844]
[1730992475352,0.2773835,75295.0,75294.0,0.39844]
[1730992475554,0.1445735,75295.0,75294.0,0.39844]
[1730992477651,0.1475735,75295.0,75294.0,0.39844]
[1730992478081,0.1445735,75295.0,75294.0,0.39844]
[1730992478310,0.1495735,75295.0,75294.0,0.39844]
[1730992478528,0.01733248,75295.0,75294.0,0.39844]
[1730992478754,0.03710848,75295.0,75294.0,0.39844]
[1730992478940,0.01733248,75295.0,75294.0,0.39844]
[1730992479216,0.01233248,75295.0,75294.0,0.39844]
[1730992479678,0.01233248,75295.0,75294.0,0.48654]
[1730992479902,0.01233248,75295.0,75294.0,0.49154]
[1730992480547,0.01533248,75295.0,75294.0,0.49154]
[1730992480763,0.01233248,75295.0,75294.0,0.49154]
[1730992481428,0.01233248,75295.0,75294.0,0.4932]
[1730992481647,0.01237741,75295.0,75294.0,0.4932]
[1730992482353,0.03218128,75295.0,75294.0,0.4932]
[1730992483052,0.03218128,75295.0,75294.0,0.4882]
[1730992483284,0.04047989,75295.0,75294.0,0.4882]
[1730992483733,0.04047989,75295.0,75294.0,0.4832]
[1730992484391,0.17272091,75295.0,75294.0,0.4001]
[1730992484608,0.17372091,75295.0,75294.0,0.4001]
[1730992484840,0.17272091,75295.0,75294.0,0.4001]
[1730992485061,0.17472091,75295.0,75294.0,0.4001]
[1730992485282,0.04047989,75295.0,75294.0,0.4001]
[1730992485503,0.04047989,75295.0,75294.0,0.4051]
[1730992485944,0.04047989,75295.0,75294.0,0.4001]
[1730992486831,0.04447989,75295.0,75294.0,0.4001]
[1730992487036,0.14282091,75295.0,75294.0,0.4001]
[1730992487251,0.14582091,75295.0,75294.0,0.4001]
[1730992487475,0.01357989,75295.0,75294.0,0.4001]
[1730992488135,0.01057989,75295.0,75294.0,0.4001]
[1730992488341,0.01357989,75295.0,75294.0,0.4001]
[1730992488756,0.003,75295.0,75294.0,0.4001]
[1730992489188,0.0112991,75295.0,75294.0,0.4001]
[1730992489389,0.14354012,75295.0,75294.0,0.4001]
[1730992489589,0.14054012,75295.0,75294.0,0.4001]
[1730992490020,0.14454012,75295.0,75294.0,0.4001]
[1730992490237,0.17999097,75295.0,75294.0,0.4001]
[1730992490439,0.14054012,75295.0,75294.0,0.4001]
[1730992490647,0.14554012,75295.0,75294.0,0.4001]
[1730992491554,0.19790906,75295.0,75294.0,0.4001]
[1730992491778,0.23745975,75295.0,75294.0,0.4001]
[1730992492211,0.10521873,75295.0,75294.0,0.4001]
[1730992492439,0.01329925,75295.0,75294.0,0.4001]
[1730992492877,0.005,75295.0,75294.0,0.4001]
[1730992493571,0.00583,75295.0,75294.0,0.4001]
[1730992494020,0.00083,75295.0,75294.0,0.4001]
[1730992494236,0.00283,75295.0,75294.0,0.4001]
[1730992495824,0.00083,75295.0,75294.0,0.4001]
[1730992496278,0.13307102,75295.0,75294.0,0.4001]
[1730992496506,0.26588102,75295.0,75294.0,0.4001]
[1730992496732,0.44647389,75295.0,75294.0,0.4001]
[1730992496970,0.5,75290.0,75276.0,0.19994268]
[1730992497177,0.0594616,75278.0,75276.0,0.19994268]
[1730992497417,0.15578817,75279.0,75276.0,0.19994268]
[1730992497641,0.0594616,75278.0,75276.0,0.19994268]
[1730992497858,0.03964957,75280.0,75271.0,0.005]
[1730992498070,0.03964957,75282.0,75270.0,0.005]
[1730992498310,0.15274171,75283.0,75270.0,0.005]
[1730992498311,0.03964826,75281.0,75270.0,0.005]
[1730992498523,0.03964826,75280.0,75270.0,0.005]
[1730992498732,0.13224102,75279.0,75270.0,0.005]
[1730992499152,0.03964826,75276.0,75269.0,0.005]